{"text_format":"1","workbook":"xlsx","n_sheets":3,"sheets":["Lista de Inventário","Lista de Escolha de Inventário","Pesquisa de Contentor"],"not_rendered":{"charts":0,"images":0,"macros":1,"external_links":0,"defined_names":8,"comments":0,"pivot_tables":0},"unopened":[],"bounds":{"document_bytes":16777216,"sheet_cells":100000,"rows_first":2000,"rows_last":500,"rows_between":2000,"halvings":0,"cell_chars":16384,"cell_head_chars":4096},"cells_cut":0,"cells_raw":0,"read":"whole","date_system":"1900"}

{"sheet":"Lista de Inventário","index":0,"n_rows":15,"n_cols":11,"rows_kept":15,"cut":false,"hidden":false,"merged":[]}
[null,"LISTA DE INVENTÁRIO"]
[null,"VALOR TOTAL DE INVENTÁRIO:","ITENS DE INVENTÁRIO:","CONTAGEM DE CONTENTORES:","LISTA DE ESCOLHA DE INVENTÁRIO","PESQUISA DE CONTENTOR"]
[null,{"$f":"SUM(ListaDeInventário[VALOR DE INVENTÁRIO])","v":4649},{"$f":"COUNTA(ListaDeInventário[DESCRIÇÃO])","v":11},{"$f":"SUMPRODUCT((1/COUNTIF(ListaDeInventário[CONTENTOR N.º],ListaDeInventário[CONTENTOR N.º]&\"\")))","v":6}]
[null,"SKU","DESCRIÇÃO","CONTENTOR N.º","LOCALIZAÇÃO","UNIDADE","QTD","QTD NOVA ENCOMENDA","PREÇO","VALOR DE INVENTÁRIO","NOVA ENCOMENDA"]
[null,"SP7875","Item 1","T345",{"$f":"IFERROR(VLOOKUP(ListaDeInventário[[#This Row],[CONTENTOR N.º]],PesquisaDeContentor[],3,FALSE),\"\")","v":"Fila 2, espaço 1"},"Cada",20,10,30,{"$f":"ListaDeInventário[[#This Row],[QTD]]*ListaDeInventário[[#This Row],[PREÇO]]","v":600},{"$f":"IFERROR(IF(ListaDeInventário[[#This Row],[QTD]]<=ListaDeInventário[[#This Row],[QTD NOVA ENCOMENDA]],1,0),0)","v":0}]
[null,"TR87680","Item 2","T345",{"$f":"IFERROR(VLOOKUP(ListaDeInventário[[#This Row],[CONTENTOR N.º]],PesquisaDeContentor[],3,FALSE),\"\")","v":"Fila 2, espaço 1"},"Cada",30,15,40,{"$f":"ListaDeInventário[[#This Row],[QTD]]*ListaDeInventário[[#This Row],[PREÇO]]","v":1200},{"$f":"IFERROR(IF(ListaDeInventário[[#This Row],[QTD]]<=ListaDeInventário[[#This Row],[QTD NOVA ENCOMENDA]],1,0),0)","v":0}]
[null,"MK676554","Item 3","T5789",{"$f":"IFERROR(VLOOKUP(ListaDeInventário[[#This Row],[CONTENTOR N.º]],PesquisaDeContentor[],3,FALSE),\"\")","v":"Fila 1, espaço 1"},"Cada",10,5,5,{"$f":"ListaDeInventário[[#This Row],[QTD]]*ListaDeInventário[[#This Row],[PREÇO]]","v":50},{"$f":"IFERROR(IF(ListaDeInventário[[#This Row],[QTD]]<=ListaDeInventário[[#This Row],[QTD NOVA ENCOMENDA]],1,0),0)","v":0}]
[null,"YE98767","Item 4","T9876",{"$f":"IFERROR(VLOOKUP(ListaDeInventário[[#This Row],[CONTENTOR N.º]],PesquisaDeContentor[],3,FALSE),\"\")","v":"Fila 3, espaço 2"},"Caixa (10 unidades)",40,10,15,{"$f":"ListaDeInventário[[#This Row],[QTD]]*ListaDeInventário[[#This Row],[PREÇO]]","v":600},{"$f":"IFERROR(IF(ListaDeInventário[[#This Row],[QTD]]<=ListaDeInventário[[#This Row],[QTD NOVA ENCOMENDA]],1,0),0)","v":0}]
[null,"XR23423","Item 5","T098",{"$f":"IFERROR(VLOOKUP(ListaDeInventário[[#This Row],[CONTENTOR N.º]],PesquisaDeContentor[],3,FALSE),\"\")","v":"Fila 3, espaço 1"},"Cada",12,10,26,{"$f":"ListaDeInventário[[#This Row],[QTD]]*ListaDeInventário[[#This Row],[PREÇO]]","v":312},{"$f":"IFERROR(IF(ListaDeInventário[[#This Row],[QTD]]<=ListaDeInventário[[#This Row],[QTD NOVA ENCOMENDA]],1,0),0)","v":0}]
[null,"PW98762","Item 6","T345",{"$f":"IFERROR(VLOOKUP(ListaDeInventário[[#This Row],[CONTENTOR N.º]],PesquisaDeContentor[],3,FALSE),\"\")","v":"Fila 2, espaço 1"},"Cada",7,10,50,{"$f":"ListaDeInventário[[#This Row],[QTD]]*ListaDeInventário[[#This Row],[PREÇO]]","v":350},{"$f":"IFERROR(IF(ListaDeInventário[[#This Row],[QTD]]<=ListaDeInventário[[#This Row],[QTD NOVA ENCOMENDA]],1,0),0)","v":1}]
[null,"BM87684","Item 7","T349",{"$f":"IFERROR(VLOOKUP(ListaDeInventário[[#This Row],[CONTENTOR N.º]],PesquisaDeContentor[],3,FALSE),\"\")","v":"Fila 1, espaço 2"},"Cada",10,5,10,{"$f":"ListaDeInventário[[#This Row],[QTD]]*ListaDeInventário[[#This Row],[PREÇO]]","v":100},{"$f":"IFERROR(IF(ListaDeInventário[[#This Row],[QTD]]<=ListaDeInventário[[#This Row],[QTD NOVA ENCOMENDA]],1,0),0)","v":0}]
[null,"BH67655","Item 8","T5789",{"$f":"IFERROR(VLOOKUP(ListaDeInventário[[#This Row],[CONTENTOR N.º]],PesquisaDeContentor[],3,FALSE),\"\")","v":"Fila 1, espaço 1"},"Cada",19,10,3,{"$f":"ListaDeInventário[[#This Row],[QTD]]*ListaDeInventário[[#This Row],[PREÇO]]","v":57},{"$f":"IFERROR(IF(ListaDeInventário[[#This Row],[QTD]]<=ListaDeInventário[[#This Row],[QTD NOVA ENCOMENDA]],1,0),0)","v":0}]
[null,"WT98768","Item 9","T9875",{"$f":"IFERROR(VLOOKUP(ListaDeInventário[[#This Row],[CONTENTOR N.º]],PesquisaDeContentor[],3,FALSE),\"\")","v":"Fila 2, espaço 2"},"Pacote (5 unidades)",20,30,14,{"$f":"ListaDeInventário[[#This Row],[QTD]]*ListaDeInventário[[#This Row],[PREÇO]]","v":280},{"$f":"IFERROR(IF(ListaDeInventário[[#This Row],[QTD]]<=ListaDeInventário[[#This Row],[QTD NOVA ENCOMENDA]],1,0),0)","v":1}]
[null,"TS3456","Item 10","T349",{"$f":"IFERROR(VLOOKUP(ListaDeInventário[[#This Row],[CONTENTOR N.º]],PesquisaDeContentor[],3,FALSE),\"\")","v":"Fila 1, espaço 2"},"Cada",15,8,60,{"$f":"ListaDeInventário[[#This Row],[QTD]]*ListaDeInventário[[#This Row],[PREÇO]]","v":900},{"$f":"IFERROR(IF(ListaDeInventário[[#This Row],[QTD]]<=ListaDeInventário[[#This Row],[QTD NOVA ENCOMENDA]],1,0),0)","v":0}]
[null,"WDG123","Item 11","T349",{"$f":"IFERROR(VLOOKUP(ListaDeInventário[[#This Row],[CONTENTOR N.º]],PesquisaDeContentor[],3,FALSE),\"\")","v":"Fila 1, espaço 2"},"Cada",25,15,8,{"$f":"ListaDeInventário[[#This Row],[QTD]]*ListaDeInventário[[#This Row],[PREÇO]]","v":200},{"$f":"IFERROR(IF(ListaDeInventário[[#This Row],[QTD]]<=ListaDeInventário[[#This Row],[QTD NOVA ENCOMENDA]],1,0),0)","v":0}]

{"sheet":"Lista de Escolha de Inventário","index":1,"n_rows":9,"n_cols":9,"rows_kept":9,"cut":false,"hidden":false,"merged":[]}
[null,"LISTA DE ESCOLHA DE INVENTÁRIO"]
[null,null,"LISTA DE INVENTÁRIO"]
[]
[null,"ENCOMENDA N.º","SKU","QTD ESCOLHIDA","QTD DISPONÍVEL","DESCRIÇÃO DO ITEM","UNIDADE","CONTENTOR N.º","LOCALIZAÇÃO"]
[null,"TP001-1","SP7875",3,{"$f":"IFERROR(VLOOKUP(ListaDeEscolhaDoInventário[[#This Row],[SKU]],ListaDeInventário[],6,FALSE),\"\")","v":20},{"$f":"IFERROR(VLOOKUP(ListaDeEscolhaDoInventário[[#This Row],[SKU]],ListaDeInventário[],2,FALSE),\"\")","v":"Item 1"},{"$f":"IFERROR(VLOOKUP(ListaDeEscolhaDoInventário[[#This Row],[SKU]],ListaDeInventário[],5,FALSE),\"\")","v":"Cada"},{"$f":"IFERROR(VLOOKUP(ListaDeEscolhaDoInventário[[#This Row],[SKU]],ListaDeInventário[],3,FALSE),\"\")","v":"T345"},{"$f":"IFERROR(VLOOKUP(ListaDeEscolhaDoInventário[[#This Row],[SKU]],ListaDeInventário[],4,FALSE),\"\")","v":"Fila 2, espaço 1"}]
[null,"TP001-1","YE98767",1,{"$f":"IFERROR(VLOOKUP(ListaDeEscolhaDoInventário[[#This Row],[SKU]],ListaDeInventário[],6,FALSE),\"\")","v":40},{"$f":"IFERROR(VLOOKUP(ListaDeEscolhaDoInventário[[#This Row],[SKU]],ListaDeInventário[],2,FALSE),\"\")","v":"Item 4"},{"$f":"IFERROR(VLOOKUP(ListaDeEscolhaDoInventário[[#This Row],[SKU]],ListaDeInventário[],5,FALSE),\"\")","v":"Caixa (10 unidades)"},{"$f":"IFERROR(VLOOKUP(ListaDeEscolhaDoInventário[[#This Row],[SKU]],ListaDeInventário[],3,FALSE),\"\")","v":"T9876"},{"$f":"IFERROR(VLOOKUP(ListaDeEscolhaDoInventário[[#This Row],[SKU]],ListaDeInventário[],4,FALSE),\"\")","v":"Fila 3, espaço 2"}]
[null,"TP001-1","BM87684",2,{"$f":"IFERROR(VLOOKUP(ListaDeEscolhaDoInventário[[#This Row],[SKU]],ListaDeInventário[],6,FALSE),\"\")","v":10},{"$f":"IFERROR(VLOOKUP(ListaDeEscolhaDoInventário[[#This Row],[SKU]],ListaDeInventário[],2,FALSE),\"\")","v":"Item 7"},{"$f":"IFERROR(VLOOKUP(ListaDeEscolhaDoInventário[[#This Row],[SKU]],ListaDeInventário[],5,FALSE),\"\")","v":"Cada"},{"$f":"IFERROR(VLOOKUP(ListaDeEscolhaDoInventário[[#This Row],[SKU]],ListaDeInventário[],3,FALSE),\"\")","v":"T349"},{"$f":"IFERROR(VLOOKUP(ListaDeEscolhaDoInventário[[#This Row],[SKU]],ListaDeInventário[],4,FALSE),\"\")","v":"Fila 1, espaço 2"}]
[null,"TP001-1","TS3456",6,{"$f":"IFERROR(VLOOKUP(ListaDeEscolhaDoInventário[[#This Row],[SKU]],ListaDeInventário[],6,FALSE),\"\")","v":15},{"$f":"IFERROR(VLOOKUP(ListaDeEscolhaDoInventário[[#This Row],[SKU]],ListaDeInventário[],2,FALSE),\"\")","v":"Item 10"},{"$f":"IFERROR(VLOOKUP(ListaDeEscolhaDoInventário[[#This Row],[SKU]],ListaDeInventário[],5,FALSE),\"\")","v":"Cada"},{"$f":"IFERROR(VLOOKUP(ListaDeEscolhaDoInventário[[#This Row],[SKU]],ListaDeInventário[],3,FALSE),\"\")","v":"T349"},{"$f":"IFERROR(VLOOKUP(ListaDeEscolhaDoInventário[[#This Row],[SKU]],ListaDeInventário[],4,FALSE),\"\")","v":"Fila 1, espaço 2"}]
[null,"TP001-1","MK676554",3,{"$f":"IFERROR(VLOOKUP(ListaDeEscolhaDoInventário[[#This Row],[SKU]],ListaDeInventário[],6,FALSE),\"\")","v":10},{"$f":"IFERROR(VLOOKUP(ListaDeEscolhaDoInventário[[#This Row],[SKU]],ListaDeInventário[],2,FALSE),\"\")","v":"Item 3"},{"$f":"IFERROR(VLOOKUP(ListaDeEscolhaDoInventário[[#This Row],[SKU]],ListaDeInventário[],5,FALSE),\"\")","v":"Cada"},{"$f":"IFERROR(VLOOKUP(ListaDeEscolhaDoInventário[[#This Row],[SKU]],ListaDeInventário[],3,FALSE),\"\")","v":"T5789"},{"$f":"IFERROR(VLOOKUP(ListaDeEscolhaDoInventário[[#This Row],[SKU]],ListaDeInventário[],4,FALSE),\"\")","v":"Fila 1, espaço 1"}]

{"sheet":"Pesquisa de Contentor","index":2,"n_rows":11,"n_cols":7,"rows_kept":11,"cut":false,"hidden":false,"merged":[]}
[null,"PESQUISA DE CONTENTOR"]
[null,"LISTA DE INVENTÁRIO"]
[]
[null,"CONTENTOR N.º","DESCRIÇÃO","LOCALIZAÇÃO","LARGURA","ALTURA","COMPRIMENTO"]
[null,"T345","Contentor grande","Fila 2, espaço 1",50,10,10]
[null,"T5789","Contentor pequeno","Fila 1, espaço 1",25,5,5]
[null,"T9876","Contentor grande","Fila 3, espaço 2",50,10,10]
[null,"T098","Contentor médio","Fila 3, espaço 1",30,7,10]
[null,"T349","Contentor pequeno","Fila 1, espaço 2",25,5,5]
[null,"T5789","Contentor grande","Fila 4, espaço 5",50,10,10]
[null,"T9875","Contentor grande","Fila 2, espaço 2",50,10,10]